fUST/lending_fUST_20260530
["ID","MTS","AMOUNT","RATE_DAILY","PERIOD"]
[423436676,1780119041000,-500.0,8.219e-05,2]
[423436739,1780119041000,-773.39,8.219e-05,2]
[423436774,1780119041000,-500.0,8.493e-05,2]
[423436773,1780119041000,-903.45,8.493e-05,2]
[423436776,1780119041000,-503.78046321,8.493e-05,2]
[423436775,1780119041000,-500.0,8.493e-05,2]
[423436787,1780119041000,-1015.73,8.493e-05,2]
[423436783,1780119041000,-844.94,8.493e-05,2]
[423436788,1780119041000,-739.49,8.493e-05,2]
[423436778,1780119041000,-3058.94,8.493e-05,2]
[423436777,1780119041000,-533.26,8.493e-05,2]
[423436779,1780119041000,-500.0,8.493e-05,2]
[423436789,1780119041000,-2020.96,8.493e-05,2]
[423436780,1780119041000,-781.8,8.493e-05,2]
[423436786,1780119041000,-500.0,8.493e-05,2]
[423436772,1780119041000,-1176.96,8.493e-05,2]
[423436782,1780119041000,-971.37,8.493e-05,2]
[423436784,1780119041000,-665.06,8.493e-05,2]
[423436785,1780119041000,-500.0,8.493e-05,2]
[423436793,1780119041000,-2140.45,8.493e-05,2]
[423436790,1780119041000,-500.0,8.493e-05,2]
[423436792,1780119041000,-3268.87,8.493e-05,2]
[423436791,1780119041000,-500.0,8.493e-05,2]
[423436800,1780119041000,-1178.89,8.493e-05,2]
[423436799,1780119041000,-922.54,8.493e-05,2]
[423436795,1780119041000,-879.04,8.493e-05,2]
[423436794,1780119041000,-985.37,8.493e-05,2]
[423436796,1780119041000,-500.0,8.493e-05,2]
[423436798,1780119041000,-793.14,8.493e-05,2]
[423436737,1780119041000,-500.0,8.219e-05,2]
[423436781,1780119041000,-500.0,8.493e-05,2]
[423436771,1780119041000,-551.25,8.493e-05,2]
[423436797,1780119041000,-582.8,8.493e-05,2]
[423436765,1780119041000,-500.0,8.493e-05,2]
[423436770,1780119041000,-371.8920941,8.493e-05,2]
[423436743,1780119041000,-500.0,8.219e-05,2]
[423436741,1780119041000,-500.0,8.219e-05,2]
[423436740,1780119041000,-848.48,8.219e-05,2]
[423436751,1780119041000,-681.97,8.493e-05,2]
[423436750,1780119041000,-500.0,8.493e-05,2]
[423436745,1780119041000,-500.0,8.493e-05,2]
[423436748,1780119041000,-535.33,8.493e-05,2]
[423436744,1780119041000,-1005.80430477,8.43e-05,2]
[423436749,1780119041000,-500.0,8.493e-05,2]
[423436747,1780119041000,-500.0,8.493e-05,2]
[423436746,1780119041000,-500.0,8.493e-05,2]
[423436753,1780119041000,-1287.96,8.493e-05,2]
[423436763,1780119041000,-500.0,8.493e-05,2]
[423436742,1780119041000,-500.0,8.219e-05,2]
[423436752,1780119041000,-500.0,8.493e-05,2]
[423436754,1780119041000,-1125.75,8.493e-05,2]
[423436769,1780119041000,-1832.43,8.493e-05,2]
[423436766,1780119041000,-541.5,8.493e-05,2]
[423436767,1780119041000,-500.0,8.493e-05,2]
[423436764,1780119041000,-4311.91,8.493e-05,2]
[423436760,1780119041000,-500.0,8.493e-05,2]
[423436768,1780119041000,-500.0,8.493e-05,2]
[423436762,1780119041000,-500.0,8.493e-05,2]
[423436758,1780119041000,-500.0,8.493e-05,2]
[423436759,1780119041000,-500.0,8.493e-05,2]
[423436757,1780119041000,-500.0,8.493e-05,2]
[423436756,1780119041000,-500.0,8.493e-05,2]
[423436761,1780119041000,-500.0,8.493e-05,2]
[423436755,1780119041000,-500.0,8.493e-05,2]
[423436835,1780119042000,-500.0,8.767e-05,2]
[423436838,1780119042000,-500.0,8.767e-05,2]
[423436839,1780119042000,-4311.91,8.767e-05,2]
[423436836,1780119042000,-500.0,8.767e-05,2]
[423436832,1780119042000,-500.0,8.767e-05,2]
[423436830,1780119042000,-500.0,8.767e-05,2]
[423436833,1780119042000,-500.0,8.767e-05,2]
[423436842,1780119042000,-500.0,8.767e-05,2]
[423436834,1780119042000,-500.0,8.767e-05,2]
[423436837,1780119042000,-344.92307621,8.767e-05,2]
[423436841,1780119042000,-541.5,8.767e-05,2]
[423436844,1780119042000,-1832.43,8.767e-05,2]
[423436843,1780119042000,-500.0,8.767e-05,2]
[423436847,1780119042000,-903.45,8.767e-05,2]
[423436846,1780119042000,-1176.96,8.767e-05,2]
[423436845,1780119042000,-551.25,8.767e-05,2]
[423436854,1780119042000,-500.0,8.767e-05,2]
[423436848,1780119042000,-500.0,8.767e-05,2]
[423436849,1780119042000,-500.0,8.767e-05,2]
[423436855,1780119042000,-971.37,8.767e-05,2]
[423436852,1780119042000,-500.0,8.767e-05,2]
[423436853,1780119042000,-781.8,8.767e-05,2]
[423436850,1780119042000,-533.26,8.767e-05,2]
[423436831,1780119042000,-500.0,8.767e-05,2]
[423436840,1780119042000,-500.0,8.767e-05,2]
[423436826,1780119042000,-681.97,8.767e-05,2]
[423436812,1780119042000,-500.0,8.493e-05,2]
[423436824,1780119042000,-500.0,8.767e-05,2]
[423436851,1780119042000,-3058.94,8.767e-05,2]
[423436802,1780119042000,-500.56,8.493e-05,2]
[423436801,1780119042000,-500.0,8.493e-05,2]
[423436814,1780119042000,-773.39,8.493e-05,2]
[423436804,1780119042000,-619.88,8.493e-05,2]
[423436816,1780119042000,-500.0,8.493e-05,2]
[423436815,1780119042000,-848.48,8.493e-05,2]
[423436806,1780119042000,-663.33,8.493e-05,2]
[423436813,1780119042000,-1651.75,8.493e-05,2]
[423436811,1780119042000,-500.0,8.493e-05,2]
[423436803,1780119042000,-500.0,8.493e-05,2]
[423436807,1780119042000,-500.0,8.493e-05,2]
[423436829,1780119042000,-1125.75,8.767e-05,2]
[423436810,1780119042000,-500.0,8.493e-05,2]
[423436805,1780119042000,-14968.72,8.493e-05,2]
[423436808,1780119042000,-3044.88,8.493e-05,2]
[423436817,1780119042000,-500.0,8.493e-05,2]
[423436819,1780119042000,-1029.00151833,8.762e-05,2]
[423436820,1780119042000,-500.0,8.767e-05,2]
[423436818,1780119042000,-720.0,8.592e-05,2]
[423436821,1780119042000,-500.0,8.767e-05,2]
[423436823,1780119042000,-535.33,8.767e-05,2]
[423436822,1780119042000,-167.3013,8.767e-05,2]
[423436828,1780119042000,-1287.96,8.767e-05,2]
[423436825,1780119042000,-500.0,8.767e-05,2]
[423436827,1780119042000,-500.0,8.767e-05,2]
[423436809,1780119042000,-174.71372,8.493e-05,2]
[423436857,1780119042000,-665.06,8.767e-05,2]
[423436859,1780119042000,-500.0,8.767e-05,2]
[423436856,1780119042000,-844.94,8.767e-05,2]
[423436884,1780119042000,-1651.75,8.767e-05,2]
[423436882,1780119042000,-500.0,8.767e-05,2]
[423436889,1780119042000,-500.0,9.041e-05,2]
[423436905,1780119042000,-168.87426051,9.041e-05,2]
[423436902,1780119042000,-500.0,9.041e-05,2]
[423436901,1780119042000,-500.0,9.041e-05,2]
[423436899,1780119042000,-500.0,9.041e-05,2]
[423436897,1780119042000,-1125.75,9.041e-05,2]
[423436894,1780119042000,-681.97,9.041e-05,2]
[423436895,1780119042000,-500.0,9.041e-05,2]
[423436893,1780119042000,-500.0,9.041e-05,2]
[423436887,1780119042000,-500.0,8.767e-05,2]
[423436904,1780119042000,-500.0,9.041e-05,2]
[423436896,1780119042000,-1287.96,9.041e-05,2]
[423436900,1780119042000,-500.0,9.041e-05,2]
[423436898,1780119042000,-273.60346296,9.041e-05,2]
[423436907,1780119042000,-501.18411438,9.041e-05,2]
[423436906,1780119042000,-4311.91,9.041e-05,2]
[423436909,1780119042000,-500.0,9.041e-05,2]
[423436913,1780119042000,-755.25292012,9.041e-05,2]
[423436912,1780119042000,-362.16793648,9.041e-05,2]
[423436908,1780119042000,-541.5,9.041e-05,2]
[423436911,1780119042000,-652.85845357,9.041e-05,2]
[423436910,1780119042000,-500.0,9.041e-05,2]
[423436903,1780119042000,-500.0,9.041e-05,2]
[423436888,1780119042000,-500.0,8.767e-05,2]
[423436892,1780119042000,-500.0,9.041e-05,2]
[423436870,1780119042000,-793.14,8.767e-05,2]
[423436858,1780119042000,-500.0,8.767e-05,2]
[423436860,1780119042000,-1015.73,8.767e-05,2]
[423436864,1780119042000,-3268.87,8.767e-05,2]
[423436861,1780119042000,-739.49,8.767e-05,2]
[423436863,1780119042000,-500.0,8.767e-05,2]
[423436862,1780119042000,-2020.96,8.767e-05,2]
[423436866,1780119042000,-985.37,8.767e-05,2]
[423436865,1780119042000,-2140.45,8.767e-05,2]
[423436869,1780119042000,-582.8,8.767e-05,2]
[423436875,1780119042000,-500.0,8.767e-05,2]
[423436871,1780119042000,-922.54,8.767e-05,2]
[423436868,1780119042000,-500.0,8.767e-05,2]
[423436886,1780119042000,-848.48,8.767e-05,2]
[423436867,1780119042000,-879.04,8.767e-05,2]
[423436873,1780119042000,-500.0,8.767e-05,2]
[423436878,1780119042000,-663.33,8.767e-05,2]
[423436876,1780119042000,-619.88,8.767e-05,2]
[423436872,1780119042000,-1178.89,8.767e-05,2]
[423436877,1780119042000,-14968.72,8.767e-05,2]
[423436880,1780119042000,-3044.88,8.767e-05,2]
[423436879,1780119042000,-500.0,8.767e-05,2]
[423436890,1780119042000,-455.77948587,9.041e-05,2]
[423436891,1780119042000,-535.33,9.041e-05,2]
[423436883,1780119042000,-500.0,8.767e-05,2]
[423436885,1780119042000,-773.39,8.767e-05,2]
[423436881,1780119042000,-500.0,8.767e-05,2]
[423436874,1780119042000,-500.56,8.767e-05,2]
[423436945,1780119044000,-0.00104694,9.041e-05,2]
[423436946,1780119046000,-62.14964289,9.041e-05,2]
[423436967,1780119047000,-1726.70875051,9.041e-05,2]
[423436947,1780119047000,-551.25,9.041e-05,2]
[423436951,1780119047000,-500.0,9.041e-05,2]
[423436948,1780119047000,-1176.96,9.041e-05,2]
[423436952,1780119047000,-533.26,9.041e-05,2]
[423436950,1780119047000,-500.0,9.041e-05,2]
[423436949,1780119047000,-903.45,9.041e-05,2]
[423436954,1780119047000,-641.15568637,9.041e-05,2]
[423436953,1780119047000,-3058.94,9.041e-05,2]
[423436965,1780119047000,-500.0,9.041e-05,2]
[423436964,1780119047000,-2020.96,9.041e-05,2]
[423436959,1780119047000,-665.06,9.041e-05,2]
[423436956,1780119047000,-500.0,9.041e-05,2]
[423436958,1780119047000,-844.94,9.041e-05,2]
[423436955,1780119047000,-781.8,9.041e-05,2]
[423436961,1780119047000,-500.0,9.041e-05,2]
[423436963,1780119047000,-739.49,9.041e-05,2]
[423436962,1780119047000,-1015.73,9.041e-05,2]
[423436960,1780119047000,-500.0,9.041e-05,2]
[423436957,1780119047000,-971.37,9.041e-05,2]
[423436966,1780119047000,-3268.87,9.041e-05,2]
[423436970,1780119073000,-5000.0,8e-05,2]
[423437364,1780119397000,-160.21282347,6.748e-05,2]
[423437377,1780119727000,-117.98466728,6.867e-05,2]
[423437376,1780119727000,-18.97811653,6.748e-05,2]
[423437375,1780119727000,-235.3783469,6.597e-05,2]
[423437378,1780119758000,-184.38101968,6.92e-05,2]
[423437392,1780120073000,-198.90783482,6.947e-05,2]
[423437399,1780120177000,-15.88011794,6.947e-05,2]
[423437398,1780120177000,-160.2128256,6.424e-05,2]
[423437419,1780120238000,-14.44373769,6.985e-05,2]
[423437418,1780120238000,-685.1595902,6.974e-05,2]
[423437417,1780120238000,-33.60065361,6.947e-05,2]
[423437416,1780120238000,-210.449,6.847e-05,2]
[423437823,1780120246000,-500.0,8.016e-05,2]
[423437817,1780120246000,-500.0,8.016e-05,2]
[423437821,1780120246000,-500.0,8.016e-05,2]
[423437819,1780120246000,-500.0,8.016e-05,2]
[423437815,1780120246000,-500.0,8.016e-05,2]
[423437803,1780120246000,-500.0,8.016e-05,2]
[423437807,1780120246000,-500.0,8.016e-05,2]
[423437797,1780120246000,-300.0,8.015e-05,2]
[423437799,1780120246000,-300.0,8.015e-05,2]
[423437805,1780120246000,-636.45797776,8.016e-05,2]
[423437813,1780120246000,-500.0,8.016e-05,2]
[423437809,1780120246000,-451.46090228,8.016e-05,2]
[423437811,1780120246000,-500.0,8.016e-05,2]
[423437789,1780120246000,-179.19094,7.458e-05,2]
[423437825,1780120246000,-500.0,8.016e-05,2]
[423437784,1780120246000,-164.74720231,6.985e-05,2]
[423437795,1780120246000,-300.0,8.015e-05,2]
[423437793,1780120246000,-5000.0,8e-05,2]
[423437791,1780120246000,-198.88704509,7.6e-05,2]
[423437801,1780120246000,-500.0,8.016e-05,2]
[423437829,1780120246000,-500.0,8.016e-05,2]
[423437786,1780120246000,-179.19094,7.222e-05,2]
[423437833,1780120246000,-500.0,8.016e-05,2]
[423437871,1780120246000,-9125.49210832,8.019e-05,2]
[423437869,1780120246000,-276.80795761,8.018e-05,2]
[423437860,1780120246000,-11901.18678652,8.017e-05,2]
[423437865,1780120246000,-21134.23730013,8.017e-05,2]
[423437867,1780120246000,-579.519,8.018e-05,2]
[423437863,1780120246000,-375.89014371,8.017e-05,2]
[423437858,1780120246000,-500.0,8.016e-05,2]
[423437855,1780120246000,-500.0,8.016e-05,2]
[423437853,1780120246000,-500.91913536,8.016e-05,2]
[423437851,1780120246000,-500.0,8.016e-05,2]
[423437831,1780120246000,-500.0,8.016e-05,2]
[423437849,1780120246000,-500.0,8.016e-05,2]
[423437827,1780120246000,-500.0,8.016e-05,2]
[423437835,1780120246000,-500.0,8.016e-05,2]
[423437842,1780120246000,-500.0,8.016e-05,2]
[423437843,1780120246000,-500.0,8.016e-05,2]
[423437857,1780120246000,-500.0,8.016e-05,2]
[423437840,1780120246000,-500.0,8.016e-05,2]
[423437847,1780120246000,-500.0,8.016e-05,2]
[423437838,1780120246000,-500.0,8.016e-05,2]
[423437837,1780120246000,-500.0,8.016e-05,2]
[423437846,1780120246000,-500.0,8.016e-05,2]
[423438111,1780120872000,-152.0,7.521e-05,2]
[423438115,1780120957000,-161.93624364,6.565e-05,2]
[423438155,1780121431000,-243.48457039,7.663e-05,2]
[423438156,1780121431000,-255.68951995,7.806e-05,5]
[423438153,1780121431000,-220.13042961,7.663e-05,2]
[423438150,1780121431000,-28.41673828,6.804e-05,2]
[423438151,1780121431000,-58.49013821,7.521e-05,2]
[423438148,1780121431000,-226.3248198,6.804e-05,2]
[423438145,1780121431000,-70.17659236,6.565e-05,2]
[423438157,1780121432000,-300.0,7.817e-05,2]
[423438159,1780121432000,-1200.0,7.817e-05,2]
[423438164,1780121432000,-500.0,7.818e-05,2]
[423438160,1780121432000,-181.8286642,7.818e-05,2]
[423438162,1780121432000,-500.0,7.818e-05,2]
[423438166,1780121432000,-1560.45067486,7.819e-05,2]
[423438170,1780121432000,-4199.44742069,7.819e-05,2]
[423438168,1780121432000,-11606.7414784,7.819e-05,2]
[423438165,1780121432000,-444.5465706,7.818e-05,2]
[423438251,1780121439000,-47729.89684594,7.819e-05,2]
[423438785,1780121446000,-191676.139042,7.819e-05,2]
[423438786,1780121446000,-12497.53233952,7.819e-05,2]
[423438784,1780121446000,-1222.39686215,7.819e-05,2]
[423438803,1780121992000,-161.935884,6.346e-05,2]
[423438804,1780121992000,-161.40728294,6.649e-05,2]
[423438807,1780122022000,-120.60672357,6.743e-05,2]
[423438806,1780122022000,-100.58522334,6.649e-05,2]
[423438809,1780122024000,-503.8542439,6.744e-05,2]
[423438808,1780122024000,-109.39780262,6.743e-05,2]
[423438815,1780122159000,-181.2621765,7.508e-05,2]
[423438817,1780122159000,-631.9743963,7.565e-05,2]
[423438814,1780122159000,-93.05019065,6.744e-05,2]
[423438816,1780122159000,-370.892,7.565e-05,2]
[423438818,1780122159000,-1200.0,7.717e-05,2]
[423438821,1780122159000,-500.0,7.718e-05,2]
[423438819,1780122159000,-279.0,7.717e-05,2]
[423438824,1780122159000,-450.68636942,7.718e-05,2]
[423438822,1780122159000,-500.0,7.718e-05,2]
[423438820,1780122159000,-293.13486713,7.718e-05,2]
[423438823,1780122159000,-500.0,7.718e-05,2]
[423438832,1780122160000,-500.0,7.718e-05,2]
[423438831,1780122160000,-500.0,7.718e-05,2]
[423438830,1780122160000,-500.0,7.718e-05,2]
[423438829,1780122160000,-500.0,7.718e-05,2]
[423438828,1780122160000,-500.0,7.718e-05,2]
[423438827,1780122160000,-500.0,7.718e-05,2]
[423438826,1780122160000,-500.0,7.718e-05,2]
[423438825,1780122160000,-49.31363058,7.718e-05,2]
[423438833,1780122161000,-358.12040802,7.718e-05,2]
[423438835,1780122161000,-500.0,7.718e-05,2]
[423438834,1780122161000,-500.0,7.718e-05,2]
[423438836,1780122161000,-92.5659614,7.718e-05,2]
[423438839,1780122161000,-500.0,7.718e-05,2]
[423438837,1780122161000,-407.4340386,7.718e-05,2]
[423438838,1780122161000,-500.0,7.718e-05,2]
[423438842,1780122161000,-500.0,7.718e-05,2]
[423438844,1780122161000,-500.0,7.718e-05,2]
[423438841,1780122161000,-500.0,7.718e-05,2]
[423438843,1780122161000,-500.0,7.718e-05,2]
[423438845,1780122161000,-500.0,7.718e-05,2]
[423438846,1780122161000,-500.0,7.718e-05,2]
[423438847,1780122161000,-92.5659614,7.718e-05,2]
[423438840,1780122161000,-500.0,7.718e-05,2]
[423438848,1780122162000,-554.27666785,7.718e-05,2]
[423438849,1780122162000,-4445.72333215,7.719e-05,2]
[423438850,1780122163000,-5000.0,7.719e-05,2]
[423438851,1780122164000,-5000.0,7.719e-05,2]
[423438852,1780122165000,-5000.0,7.719e-05,2]
[423438853,1780122166000,-5000.0,7.719e-05,2]
[423438854,1780122167000,-5000.0,7.719e-05,2]
[423438855,1780122168000,-5000.0,7.719e-05,2]
[423438856,1780122169000,-5000.0,7.719e-05,2]
[423438857,1780122170000,-5000.0,7.719e-05,2]
[423438858,1780122171000,-5000.0,7.719e-05,2]
[423438859,1780122172000,-5000.0,7.719e-05,2]
[423438861,1780122173000,-5000.0,7.719e-05,2]
[423438860,1780122173000,-5000.0,7.719e-05,2]
[423438862,1780122174000,-5000.0,7.719e-05,2]
[423438863,1780122175000,-5000.0,7.719e-05,2]
[423438865,1780122176000,-186.5326358,7.719e-05,2]
[423438867,1780122176000,1310.84720385,7.619e-05,2]
[423438866,1780122176000,-3267.24046035,7.719e-05,2]
[423438864,1780122176000,-235.3797,7.719e-05,2]
[423438868,1780122177000,-5000.0,7.619e-05,2]
[423438869,1780122178000,-5000.0,7.619e-05,2]
[423438871,1780122179000,-5000.0,7.619e-05,2]
[423438870,1780122179000,-5000.0,7.619e-05,2]
[423438872,1780122180000,-5000.0,7.619e-05,2]
[423438873,1780122181000,-5000.0,7.619e-05,2]
[423438874,1780122182000,-5000.0,7.619e-05,2]
[423438875,1780122183000,-5000.0,7.619e-05,2]
[423438876,1780122184000,-5000.0,7.619e-05,2]
[423438877,1780122185000,-5000.0,7.619e-05,2]
[423438878,1780122186000,-5000.0,7.619e-05,2]
[423438879,1780122186000,-5000.0,7.619e-05,2]
[423438880,1780122187000,-5000.0,7.619e-05,2]
[423438881,1780122188000,-5000.0,7.619e-05,2]
[423438882,1780122189000,-5000.0,7.619e-05,2]
[423438883,1780122190000,-5000.0,7.619e-05,2]
[423438884,1780122191000,-5000.0,7.619e-05,2]
[423438885,1780122192000,-5000.0,7.619e-05,2]
[423438886,1780122193000,-5000.0,7.619e-05,2]
[423438888,1780122194000,-5000.0,7.619e-05,2]
[423438887,1780122194000,-5000.0,7.619e-05,2]
[423438889,1780122195000,-5000.0,7.619e-05,2]
[423438890,1780122196000,-5000.0,7.619e-05,2]
[423438891,1780122197000,-5000.0,7.619e-05,2]
[423438892,1780122198000,-5000.0,7.619e-05,2]
[423438893,1780122199000,-5000.0,7.619e-05,2]
[423438894,1780122200000,-5000.0,7.619e-05,2]
[423438895,1780122213000,-3600.0,7.619e-05,2]
[423438909,1780122409000,-4517.19980484,7.518e-05,2]
[423438908,1780122409000,-296.714,7.467e-05,2]
[423438906,1780122409000,-2891.0078751,7.354e-05,2]
[423438905,1780122409000,-2479.19555808,7.334e-05,2]
[423438902,1780122409000,-619.79888952,7.102e-05,2]
[423438904,1780122409000,-1394.54750142,7.218e-05,2]
[423438901,1780122409000,-722.75196877,7.025e-05,2]
[423438900,1780122409000,-154.94972238,6.986e-05,2]
[423438899,1780122409000,-180.68799219,6.861e-05,2]
[423438903,1780122409000,-1626.19192974,7.19e-05,2]
[423438910,1780122409000,-266.57567606,7.542e-05,2]
[423438907,1780122409000,-3873.74305951,7.451e-05,2]
[423438911,1780122409000,-300.0,7.566e-05,2]
[423438912,1780122409000,-5578.19000569,7.567e-05,2]
[423438922,1780122409000,-500.0,7.616e-05,2]
[423438923,1780122409000,-500.0,7.616e-05,2]
[423438921,1780122409000,-500.0,7.616e-05,2]
[423438920,1780122409000,-500.0,7.616e-05,2]
[423438917,1780122409000,-500.0,7.616e-05,2]
[423438913,1780122409000,-500.0,7.616e-05,2]
[423438919,1780122409000,-500.0,7.616e-05,2]
[423438916,1780122409000,-302.16498139,7.616e-05,2]
[423438915,1780122409000,-500.0,7.616e-05,2]
[423438914,1780122409000,-246.84724884,7.616e-05,2]
[423438918,1780122409000,-500.0,7.616e-05,2]
[423438924,1780122410000,-500.0,7.616e-05,2]
[423438925,1780122410000,-500.0,7.616e-05,2]
[423438926,1780122410000,-500.0,7.616e-05,2]
[423438928,1780122410000,-500.0,7.616e-05,2]
[423438927,1780122410000,-500.0,7.616e-05,2]
[423438931,1780122410000,-500.0,7.616e-05,2]
[423438930,1780122410000,-500.0,7.616e-05,2]
[423438932,1780122410000,-500.0,7.616e-05,2]
[423438929,1780122410000,-476.53890774,7.616e-05,2]
[423438933,1780122410000,-203.93701695,7.616e-05,2]
[423438934,1780122410000,-500.0,7.616e-05,2]
[423438936,1780122410000,-500.0,7.616e-05,2]
[423438937,1780122410000,-500.0,7.616e-05,2]
[423438938,1780122410000,-500.0,7.616e-05,2]
[423438940,1780122410000,-270.0,7.617e-05,2]
[423438939,1780122410000,-300.0,7.617e-05,2]
[423438942,1780122410000,-1200.0,7.617e-05,2]
[423438941,1780122410000,-300.0,7.617e-05,2]
[423438944,1780122410000,-10798.95786178,7.619e-05,2]
[423438935,1780122410000,-500.0,7.616e-05,2]
[423438948,1780122413000,-50000.0,7.619e-05,2]
[423438976,1780122632000,-261.24416254,7.394e-05,2]
[423438980,1780122632000,-300.0,7.618e-05,2]
[423438978,1780122632000,-633.77077966,7.618e-05,2]
[423438974,1780122632000,-166.01891819,7.169e-05,2]
[423438992,1780122632000,-400.499995,7.619e-05,2]
[423438986,1780122632000,-300.0,7.618e-05,2]
[423438990,1780122632000,-2300.10118201,7.619e-05,2]
[423438988,1780122632000,-300.0,7.618e-05,2]
[423438983,1780122632000,-597.0,7.618e-05,2]
[423439169,1780122639000,-712.58951452,7.619e-05,2]
[423439185,1780122639000,-105096.60958313,7.619e-05,2]
[423439202,1780122639000,-23307.93680511,7.619e-05,2]
[423439206,1780122639000,-5029.17032216,7.619e-05,2]
[423439204,1780122639000,-3191.72976468,7.619e-05,2]
[423439385,1780122640000,-2415.87706025,7.619e-05,2]
[423439387,1780122640000,-2120.24758729,7.619e-05,2]
[423439519,1780122641000,-1939.39434522,7.619e-05,2]
[423439517,1780122641000,-2.83233183,7.619e-05,2]
[423439537,1780122653000,-3846.83376164,7.619e-05,2]
[423439538,1780122653000,-73046.83239744,7.619e-05,2]
[423439535,1780122653000,-6239.25245706,7.619e-05,2]
[423439536,1780122653000,-3658.80553173,7.619e-05,2]
[423439539,1780122654000,-307.708,7.619e-05,2]
[423439540,1780122654000,-4905.0414327,7.619e-05,2]
[423439825,1780123832000,-1798.1258068,7.079e-05,2]
[423439819,1780123832000,-267.34831866,6.864e-05,2]
[423439818,1780123832000,-185.649189,6.855e-05,2]
[423439820,1780123832000,-178.11809757,6.886e-05,2]
[423439823,1780123832000,-230.0,7.078e-05,2]
[423439822,1780123832000,-300.0,7.078e-05,2]
[423439824,1780123832000,-3089.53290007,7.079e-05,2]
[423439827,1780123832000,-378.87983718,7.141e-05,2]
[423439821,1780123832000,-187.9835263,6.974e-05,2]
[423439826,1780123832000,-960.48570743,7.079e-05,2]
[423439831,1780123832000,-164.05987864,7.318e-05,2]
[423439843,1780123832000,-804.67750425,7.319e-05,2]
[423439833,1780123832000,-500.0,7.318e-05,2]
[423439835,1780123832000,-99.78256112,7.318e-05,2]
[423439838,1780123832000,-240.72613123,7.318e-05,2]
[423439840,1780123832000,-500.0,7.318e-05,2]
[423439841,1780123832000,-6557.27386877,7.319e-05,2]
[423439829,1780123832000,-500.0,7.318e-05,2]
[423440306,1780123841000,-498.19580677,7.319e-05,2]
[423440354,1780123841000,-281.01403108,7.319e-05,2]
[423440369,1780123841000,-3267.24046035,7.351e-05,2]
[423440371,1780123841000,-87008.36258782,7.351e-05,2]
[423440359,1780123841000,-95795.98524087,7.319e-05,2]
[423440364,1780123841000,-876.24389892,7.341e-05,2]
[423440363,1780123841000,-219.06097473,7.341e-05,2]
[423440367,1780123841000,-3504.97559567,7.341e-05,2]
[423440365,1780123841000,-1971.54877257,7.341e-05,2]
[423440375,1780123841000,-86139.70177573,7.351e-05,2]
[423440373,1780123841000,-398.97496663,7.351e-05,2]
[423440361,1780123841000,-185.649189,7.336e-05,2]
[423440584,1780123843000,-32481.60523295,7.351e-05,2]
[423440581,1780123843000,-543.38155845,7.351e-05,2]
[423440583,1780123843000,-568.02726802,7.351e-05,2]
[423440582,1780123843000,-1685.13490409,7.351e-05,2]
[423440587,1780123843000,-9881.11499437,7.351e-05,2]
[423440585,1780123843000,-361.0,7.351e-05,2]
[423440588,1780123843000,-2060.3243339,7.351e-05,2]
[423440591,1780123843000,-3197.03465272,7.351e-05,2]
[423440590,1780123843000,-40489.05190787,7.351e-05,2]
[423440586,1780123843000,-17673.3284568,7.351e-05,2]
[423440589,1780123843000,-424.17702131,7.351e-05,2]
[423440593,1780123843000,-4479.15198489,7.351e-05,2]
[423440592,1780123843000,-2687.75258541,7.351e-05,2]
[423440610,1780123846000,-27010.50162175,7.351e-05,2]
[423440609,1780123846000,-18925.42894494,7.351e-05,2]
[423440631,1780123959000,5000.0,0.00020547,120]
[423440632,1780123966000,5000.0,0.00020547,120]
[423440659,1780124212000,-200.00076552,6.411e-05,2]
[423440661,1780124242000,-276.41293151,6.132e-05,2]
[423440662,1780124244000,-323.34532077,6.132e-05,2]
[423440663,1780124248000,-176.65683306,6.132e-05,2]
[423440664,1780124251000,-300.0,6.132e-05,2]
[423440665,1780124254000,-520.47822023,6.132e-05,2]
[423440666,1780124255000,-165.754001,6.132e-05,2]
[423440668,1780124274000,-164.24994259,6.132e-05,2]
[423440669,1780124276000,-161.935884,6.132e-05,2]
[423440670,1780124278000,-154.51335139,6.132e-05,2]
[423440671,1780124281000,-161.935884,6.132e-05,2]
[423440672,1780124283000,-176.65683306,6.132e-05,2]
[423440673,1780124285000,-278.80805309,6.132e-05,2]
[423440674,1780124287000,-214.78795276,6.132e-05,2]
[423440678,1780124292000,-184.38101968,6.132e-05,2]